[Event "Early-Titled-Tuesday-Blitz-July-09-2024"]
[Site "Chess.com"]
[Date "2024.07.09"]
[Round "3"]
[White "chessbaerchen"]
[Black "LileKoridze"]
[Result "1-0"]
[WhiteElo "2650"]
[BlackElo "2427"]
[TimeControl "180+1"]
[EndTime "8:28:46 PDT"]
[Termination "chessbaerchen won by resignation"]

1. e4 {[%clk 0:03:00.9]} 1... c5 {[%clk 0:02:59.8]} 2. Nf3 {[%clk 0:03:01]} 2...
d6 {[%clk 0:02:58.8]} 3. Bb5+ {[%clk 0:03:00]} 3... Nd7 {[%clk 0:02:55.7]} 4.
O-O {[%clk 0:02:55.6]} 4... a6 {[%clk 0:02:55]} 5. Bd3 {[%clk 0:02:55.4]} 5...
Ngf6 {[%clk 0:02:54.7]} 6. c3 {[%clk 0:02:54.5]} 6... g6 {[%clk 0:02:51.9]} 7.
Re1 {[%clk 0:02:53.4]} 7... Bg7 {[%clk 0:02:51.6]} 8. a4 {[%clk 0:02:48.5]} 8...
b6 {[%clk 0:02:50.5]} 9. Bc2 {[%clk 0:02:48.1]} 9... O-O {[%clk 0:02:49.1]} 10.
d4 {[%clk 0:02:48.1]} 10... cxd4 {[%clk 0:02:49.2]} 11. cxd4 {[%clk 0:02:49]}
11... Bb7 {[%clk 0:02:49.6]} 12. Nc3 {[%clk 0:02:49.6]} 12... e6 {[%clk
0:02:48.6]} 13. Bf4 {[%clk 0:02:47.9]} 13... Qe7 {[%clk 0:02:48]} 14. h3 {[%clk
0:02:48.3]} 14... Rac8 {[%clk 0:02:46.4]} 15. Qd2 {[%clk 0:02:48]} 15... e5
{[%clk 0:02:40.8]} 16. Be3 {[%clk 0:02:46.9]} 16... exd4 {[%clk 0:02:40.1]} 17.
Bxd4 {[%clk 0:02:46.7]} 17... Nc5 {[%clk 0:02:27.8]} 18. e5 {[%clk 0:02:42]}
18... dxe5 {[%clk 0:02:27.5]} 19. Nxe5 {[%clk 0:02:41.6]} 19... Qc7 {[%clk
0:02:26.9]} 20. Rac1 {[%clk 0:02:31.2]} 20... Rfd8 {[%clk 0:02:24.1]} 21. Qe3
{[%clk 0:02:29]} 21... Re8 {[%clk 0:01:41.9]} 22. Bxc5 {[%clk 0:01:47.7]} 22...
bxc5 {[%clk 0:01:40.9]} 23. Bb3 {[%clk 0:01:05.8]} 23... c4 {[%clk 0:01:24.6]}
24. Bxc4 {[%clk 0:00:51.6]} 24... Rxe5 {[%clk 0:01:24.2]} 25. Qxe5 {[%clk
0:00:30.8]} 25... Qxc4 {[%clk 0:01:23]} 26. Ne2 {[%clk 0:00:29.7]} 26... Qxa4
{[%clk 0:01:05.8]} 27. Rxc8+ {[%clk 0:00:27.7]} 27... Bxc8 {[%clk 0:01:05.9]}
28. Rc1 {[%clk 0:00:27]} 28... Be6 {[%clk 0:01:04.2]} 29. Nd4 {[%clk 0:00:20.4]}
29... Nd7 {[%clk 0:00:53.6]} 30. Nxe6 {[%clk 0:00:18.9]} 30... fxe6 {[%clk
0:00:41.7]} 31. Qxe6+ {[%clk 0:00:19.8]} 31... Kh8 {[%clk 0:00:42]} 32. Qe8+
{[%clk 0:00:18.6]} 32... Nf8 {[%clk 0:00:41.8]} 33. Qxa4 {[%clk 0:00:17.2]} 1-0

[Event "Early-Titled-Tuesday-Blitz-July-09-2024"]
[Site "Chess.com"]
[Date "2024.07.09"]
[Round "3"]
[White "Rud_Makarian"]
[Black "english_player_89"]
[Result "1-0"]
[WhiteElo "3002"]
[BlackElo "2526"]
[TimeControl "180+1"]
[EndTime "8:28:48 PDT"]
[Termination "Rud_Makarian won by checkmate"]

1. d4 {[%clk 0:02:32.3]} 1... d5 {[%clk 0:03:00]} 2. Nf3 {[%clk 0:02:33.2]} 2...
Nf6 {[%clk 0:02:59.7]} 3. c4 {[%clk 0:02:34.1]} 3... c6 {[%clk 0:03:00.1]} 4.
Nc3 {[%clk 0:02:35]} 4... e6 {[%clk 0:03:00.4]} 5. Bg5 {[%clk 0:02:35.6]} 5...
Nbd7 {[%clk 0:03:00.5]} 6. e3 {[%clk 0:02:35.7]} 6... Qa5 {[%clk 0:03:00.4]} 7.
Nd2 {[%clk 0:02:35.8]} 7... dxc4 {[%clk 0:03:00.2]} 8. Bxf6 {[%clk 0:02:36.5]}
8... Nxf6 {[%clk 0:03:00.4]} 9. Nxc4 {[%clk 0:02:37.4]} 9... Qc7 {[%clk
0:03:00.7]} 10. Rc1 {[%clk 0:02:38]} 10... Be7 {[%clk 0:03:01.3]} 11. g3 {[%clk
0:02:38.2]} 11... O-O {[%clk 0:03:01.4]} 12. Bg2 {[%clk 0:02:38.9]} 12... Bd7
{[%clk 0:03:01.9]} 13. O-O {[%clk 0:02:39.2]} 13... Rac8 {[%clk 0:03:02.3]} 14.
e4 {[%clk 0:02:39.7]} 14... Rfd8 {[%clk 0:03:01.6]} 15. e5 {[%clk 0:02:39.3]}
15... Ne8 {[%clk 0:03:01.2]} 16. Qe2 {[%clk 0:02:36.9]} 16... a6 {[%clk
0:02:59]} 17. Rfd1 {[%clk 0:02:36.6]} 17... Qb8 {[%clk 0:02:57.6]} 18. Ne4
{[%clk 0:02:33.6]} 18... Qa7 {[%clk 0:02:48.6]} 19. Qe3 {[%clk 0:02:31.4]} 19...
b5 {[%clk 0:02:31.2]} 20. Na5 {[%clk 0:02:30.5]} 20... Qb6 {[%clk 0:02:26.6]}
21. Nb3 {[%clk 0:02:29.8]} 21... Nc7 {[%clk 0:02:23.8]} 22. Nbc5 {[%clk
0:02:26.2]} 22... Nd5 {[%clk 0:02:22.1]} 23. Qe2 {[%clk 0:02:26.1]} 23... Be8
{[%clk 0:02:21.2]} 24. h4 {[%clk 0:02:26.6]} 24... a5 {[%clk 0:02:20.1]} 25. Rd3
{[%clk 0:02:23.1]} 25... Nb4 {[%clk 0:02:19]} 26. Rd2 {[%clk 0:02:19.9]} 26...
Nxa2 {[%clk 0:02:18.5]} 27. Rcd1 {[%clk 0:02:20]} 27... Nb4 {[%clk 0:02:18.5]}
28. g4 {[%clk 0:02:18.4]} 28... Nd5 {[%clk 0:02:17.9]} 29. g5 {[%clk 0:02:18]}
29... b4 {[%clk 0:02:13.2]} 30. Qg4 {[%clk 0:02:17]} 30... Bxc5 {[%clk
0:02:03.3]} 31. dxc5 {[%clk 0:02:13.9]} 31... Qa7 {[%clk 0:01:58]} 32. h5 {[%clk
0:02:13.9]} 32... a4 {[%clk 0:01:55.9]} 33. h6 {[%clk 0:02:12]} 33... g6 {[%clk
0:01:50.7]} 34. Nd6 {[%clk 0:02:00.6]} 34... Qxc5 {[%clk 0:01:41.6]} 35. Bxd5
{[%clk 0:01:54.2]} 35... cxd5 {[%clk 0:01:38]} 36. Qf4 {[%clk 0:01:54.2]} 36...
f5 {[%clk 0:01:30.4]} 37. gxf6 {[%clk 0:01:41.7]} 37... Rc7 {[%clk 0:01:28.4]}
38. f7+ {[%clk 0:01:18.1]} 38... Rxf7 {[%clk 0:01:16.6]} 39. Nxf7 {[%clk
0:01:18]} 39... Bxf7 {[%clk 0:01:17.3]} 40. Qf6 {[%clk 0:01:18.4]} 40... Qf8
{[%clk 0:01:17.8]} 41. Rc1 {[%clk 0:01:18.7]} 41... Ra8 {[%clk 0:01:04.9]} 42.
Rc7 {[%clk 0:01:18.2]} 42... a3 {[%clk 0:01:05.1]} 43. bxa3 {[%clk 0:01:18.4]}
43... bxa3 {[%clk 0:01:06]} 44. Ra2 {[%clk 0:01:18.7]} 44... d4 {[%clk
0:00:55.8]} 45. Rxa3 {[%clk 0:01:18.6]} 45... Rxa3 {[%clk 0:00:53.2]} 46. Rc8
{[%clk 0:01:18]} 46... Ra1+ {[%clk 0:00:25.3]} 47. Kg2 {[%clk 0:01:08.5]} 47...
Ra8 {[%clk 0:00:23.9]} 48. Qg7# {[%clk 0:01:05.7]} 1-0

[Event "Early-Titled-Tuesday-Blitz-July-09-2024"]
[Site "Chess.com"]
[Date "2024.07.09"]
[Round "3"]
[White "Baronessa08"]
[Black "SujanaLohani"]
[Result "1-0"]
[WhiteElo "2599"]
[BlackElo "2368"]
[TimeControl "180+1"]
[EndTime "8:28:50 PDT"]
[Termination "Baronessa08 won by resignation"]

1. c4 {[%clk 0:03:00.9]} 1... Nf6 {[%clk 0:02:59.3]} 2. Nc3 {[%clk 0:02:59.2]}
2... d5 {[%clk 0:02:57.5]} 3. cxd5 {[%clk 0:02:58]} 3... Nxd5 {[%clk 0:02:58.4]}
4. g3 {[%clk 0:02:58.5]} 4... g6 {[%clk 0:02:57.8]} 5. Bg2 {[%clk 0:02:58.3]}
5... Nb6 {[%clk 0:02:58.4]} 6. d4 {[%clk 0:02:56.6]} 6... Bg7 {[%clk 0:02:58.6]}
7. Nf3 {[%clk 0:02:57.2]} 7... O-O {[%clk 0:02:57.1]} 8. O-O {[%clk 0:02:55.6]}
8... Nc6 {[%clk 0:02:57.5]} 9. e3 {[%clk 0:02:53.9]} 9... e5 {[%clk 0:02:52.8]}
10. d5 {[%clk 0:02:47.5]} 10... Nb4 {[%clk 0:02:42.4]} 11. e4 {[%clk 0:02:47.5]}
11... h6 {[%clk 0:02:39.2]} 12. a3 {[%clk 0:02:47]} 12... Na6 {[%clk 0:02:38.9]}
13. b4 {[%clk 0:02:43.9]} 13... Bg4 {[%clk 0:02:38]} 14. Qb3 {[%clk 0:02:32.8]}
14... Kh7 {[%clk 0:02:35.3]} 15. Be3 {[%clk 0:02:29.8]} 15... f5 {[%clk
0:02:32.7]} 16. b5 {[%clk 0:02:25.9]} 16... Nb8 {[%clk 0:02:25]} 17. exf5 {[%clk
0:02:19.7]} 17... gxf5 {[%clk 0:02:23.4]} 18. Nh4 {[%clk 0:02:14.2]} 18... N8d7
{[%clk 0:02:17.9]} 19. h3 {[%clk 0:02:09.5]} 19... Bh5 {[%clk 0:02:17.1]} 20.
Nxf5 {[%clk 0:02:06.8]} 20... Rxf5 {[%clk 0:02:14.6]} 21. g4 {[%clk 0:02:07.1]}
21... Bxg4 {[%clk 0:02:10.8]} 22. hxg4 {[%clk 0:02:07]} 22... Rf8 {[%clk
0:02:11.4]} 23. Ne4 {[%clk 0:01:52.6]} 23... Qh4 {[%clk 0:02:08.7]} 24. g5
{[%clk 0:01:38.3]} 24... Rf5 {[%clk 0:02:02.4]} 25. Ng3 {[%clk 0:01:34.3]} 25...
Rff8 {[%clk 0:02:00]} 26. Qc2+ {[%clk 0:01:15.2]} 26... Kh8 {[%clk 0:01:57.5]}
27. Qg6 {[%clk 0:01:11.5]} 27... hxg5 {[%clk 0:01:54.2]} 28. Bxg5 {[%clk
0:01:05.6]} 28... Qh7 {[%clk 0:01:54.6]} 29. Qxh7+ {[%clk 0:00:58.1]} 29... Kxh7
{[%clk 0:01:55.5]} 30. Be4+ {[%clk 0:00:58.3]} 30... Kh8 {[%clk 0:01:55.8]} 31.
Kg2 {[%clk 0:00:56]} 31... Nf6 {[%clk 0:01:52.9]} 32. Rh1+ {[%clk 0:00:52.1]}
32... Kg8 {[%clk 0:01:53.1]} 33. Bf5 {[%clk 0:00:52.3]} 33... Nbxd5 {[%clk
0:01:50.7]} 34. Be6+ {[%clk 0:00:52]} 34... Rf7 {[%clk 0:01:50.1]} 35. Rad1
{[%clk 0:00:44]} 35... c6 {[%clk 0:01:43.6]} 36. Nf5 {[%clk 0:00:29.2]} 36...
Ne4 {[%clk 0:01:37.1]} 37. Bh6 {[%clk 0:00:15.3]} 37... Bh8 {[%clk 0:01:26.6]}
38. Rh4 {[%clk 0:00:13.9]} 38... Nc5 {[%clk 0:01:20.1]} 39. Rg4+ {[%clk
0:00:13.5]} 39... Kh7 {[%clk 0:01:12.6]} 40. Bxf7 {[%clk 0:00:13.7]} 1-0

[Event "Early-Titled-Tuesday-Blitz-July-09-2024"]
[Site "Chess.com"]
[Date "2024.07.09"]
[Round "3"]
[White "Aryan_Tamadon"]
[Black "stepanosinovsky"]
[Result "1-0"]
[WhiteElo "2590"]
[BlackElo "2351"]
[TimeControl "180+1"]
[EndTime "8:28:51 PDT"]
[Termination "Aryan_Tamadon won by resignation"]

1. b3 {[%clk 0:02:58.9]} 1... Nf6 {[%clk 0:02:58.7]} 2. Bb2 {[%clk 0:02:59.5]}
2... g6 {[%clk 0:02:59.6]} 3. g3 {[%clk 0:02:59.4]} 3... Bg7 {[%clk 0:02:59.7]}
4. Bg2 {[%clk 0:03:00.1]} 4... O-O {[%clk 0:03:00.3]} 5. e3 {[%clk 0:02:59.9]}
5... d6 {[%clk 0:03:00.8]} 6. Ne2 {[%clk 0:02:59.6]} 6... e5 {[%clk 0:03:00.9]}
7. O-O {[%clk 0:02:59.9]} 7... Re8 {[%clk 0:02:54.5]} 8. c4 {[%clk 0:02:59.6]}
8... Nc6 {[%clk 0:02:53.3]} 9. Nbc3 {[%clk 0:03:00.1]} 9... h5 {[%clk
0:02:52.5]} 10. h3 {[%clk 0:02:58.3]} 10... a5 {[%clk 0:02:49.7]} 11. a3 {[%clk
0:02:57.2]} 11... e4 {[%clk 0:02:38.8]} 12. f4 {[%clk 0:02:48.4]} 12... Bf5
{[%clk 0:02:32.8]} 13. Qc2 {[%clk 0:02:39.7]} 13... Qd7 {[%clk 0:02:30]} 14. Kh2
{[%clk 0:02:37.7]} 14... Rad8 {[%clk 0:02:18.4]} 15. Nd1 {[%clk 0:02:36.7]}
15... d5 {[%clk 0:02:12.6]} 16. c5 {[%clk 0:02:37.4]} 16... Qe6 {[%clk
0:01:46.1]} 17. Bc3 {[%clk 0:02:25.7]} 17... d4 {[%clk 0:01:38.2]} 18. Nxd4
{[%clk 0:01:55.9]} 18... Nxd4 {[%clk 0:01:37.9]} 19. Bxd4 {[%clk 0:01:56.2]}
19... Rxd4 {[%clk 0:01:38]} 20. exd4 {[%clk 0:01:46.1]} 20... e3 {[%clk
0:01:38.2]} 21. Qc3 {[%clk 0:01:29.1]} 21... e2 {[%clk 0:01:37]} 22. Re1 {[%clk
0:01:29.4]} 22... exd1=Q {[%clk 0:01:31.3]} 23. Rxe6 {[%clk 0:01:30]} 23... Qc2
{[%clk 0:01:09.1]} 24. Rxe8+ {[%clk 0:01:30.1]} 24... Nxe8 {[%clk 0:01:08.2]}
25. Re1 {[%clk 0:01:21.6]} 25... Nf6 {[%clk 0:00:26.6]} 26. Bxb7 {[%clk
0:01:20.6]} 26... Qd3 {[%clk 0:00:18.7]} 27. Qxd3 {[%clk 0:01:12.7]} 27... Bxd3
{[%clk 0:00:19.6]} 28. b4 {[%clk 0:01:13.3]} 28... axb4 {[%clk 0:00:18.9]} 29.
axb4 {[%clk 0:01:12.8]} 29... Bf8 {[%clk 0:00:12.7]} 30. d5 {[%clk 0:01:07.2]}
30... Bc4 {[%clk 0:00:11]} 31. d6 {[%clk 0:01:05.4]} 31... cxd6 {[%clk
0:00:08.9]} 32. c6 {[%clk 0:01:05.8]} 32... Nd5 {[%clk 0:00:05.4]} 33. Rc1
{[%clk 0:01:04.1]} 33... Bb5 {[%clk 0:00:01.5]} 34. c7 {[%clk 0:01:03.6]} 34...
Nxc7 {[%clk 0:00:02]} 35. Rxc7 {[%clk 0:01:04.5]} 35... d5 {[%clk 0:00:02.2]}
36. Bxd5 {[%clk 0:01:04.4]} 1-0

[Event "Early-Titled-Tuesday-Blitz-July-09-2024"]
[Site "Chess.com"]
[Date "2024.07.09"]
[Round "3"]
[White "eljanov"]
[Black "ccccvhhhj"]
[Result "1-0"]
[WhiteElo "2915"]
[BlackElo "2518"]
[TimeControl "180+1"]
[EndTime "8:28:53 PDT"]
[Termination "eljanov won by resignation"]

1. d4 {[%clk 0:03:00.9]} 1... e5 {[%clk 0:02:59.4]} 2. dxe5 {[%clk 0:03:00.8]}
2... d6 {[%clk 0:03:00.1]} 3. Nf3 {[%clk 0:03:00.6]} 3... Bg4 {[%clk 0:03:00.2]}
4. h3 {[%clk 0:02:59.1]} 4... Bh5 {[%clk 0:03:00]} 5. g4 {[%clk 0:02:58.7]} 5...
Bg6 {[%clk 0:03:00.1]} 6. Bg2 {[%clk 0:02:59.1]} 6... Nc6 {[%clk 0:02:59.8]} 7.
exd6 {[%clk 0:02:46.3]} 7... Bxd6 {[%clk 0:03:00.7]} 8. O-O {[%clk 0:02:42.5]}
8... Qe7 {[%clk 0:02:59.6]} 9. Qd5 {[%clk 0:02:11.1]} 9... O-O-O {[%clk
0:02:39.8]} 10. Qb5 {[%clk 0:02:11.1]} 10... Bc5 {[%clk 0:01:38.4]} 11. Nc3
{[%clk 0:01:53.4]} 11... Nf6 {[%clk 0:01:37.4]} 12. Bg5 {[%clk 0:01:46.5]} 12...
h5 {[%clk 0:01:15.4]} 13. gxh5 {[%clk 0:01:44.1]} 13... Rxh5 {[%clk 0:01:11.4]}
14. h4 {[%clk 0:01:42.9]} 14... Qe6 {[%clk 0:00:47.6]} 15. Qxc5 {[%clk
0:01:39.2]} 15... Rdh8 {[%clk 0:00:40.7]} 16. Qe3 {[%clk 0:01:32.5]} 16... Qg4
{[%clk 0:00:38.6]} 17. Qf4 {[%clk 0:01:31.4]} 17... Qe6 {[%clk 0:00:37.4]} 18.
Rfd1 {[%clk 0:01:27]} 18... Nd7 {[%clk 0:00:35.7]} 19. Nd5 {[%clk 0:01:25.5]}
19... Nde5 {[%clk 0:00:30.8]} 20. Nxe5 {[%clk 0:01:25]} 20... Nxe5 {[%clk
0:00:31.7]} 21. Ne7+ {[%clk 0:01:19.6]} 21... Kb8 {[%clk 0:00:32.2]} 22. Qb4
{[%clk 0:01:16.7]} 22... c6 {[%clk 0:00:22]} 23. Nxg6 {[%clk 0:01:12.2]} 23...
Nxg6 {[%clk 0:00:20.1]} 24. Rd6 {[%clk 0:01:09.6]} 24... Qf5 {[%clk 0:00:12.7]}
25. Rxc6 {[%clk 0:00:57.3]} 25... Nxh4 {[%clk 0:00:08.3]} 26. Qf4+ {[%clk
0:00:50.1]} 26... Qxf4 {[%clk 0:00:08.3]} 27. Bxf4+ {[%clk 0:00:50.4]} 27... Ka8
{[%clk 0:00:08.5]} 28. Rc7 {[%clk 0:00:46.1]} 28... Ng6 {[%clk 0:00:06.5]} 29.
Bg3 {[%clk 0:00:43.8]} 29... Ne5 {[%clk 0:00:05.5]} 30. Bxe5 {[%clk 0:00:42.4]}
30... Rxe5 {[%clk 0:00:05.9]} 31. Rxb7 {[%clk 0:00:42.5]} 1-0

[Event "Early-Titled-Tuesday-Blitz-July-09-2024"]
[Site "Chess.com"]
[Date "2024.07.09"]
[Round "3"]
[White "FollowRivers"]
[Black "AEMEffi"]
[Result "1-0"]
[WhiteElo "2521"]
[BlackElo "2316"]
[TimeControl "180+1"]
[EndTime "8:28:54 PDT"]
[Termination "FollowRivers won by resignation"]

1. e4 {[%clk 0:03:00.3]} 1... d5 {[%clk 0:02:57.4]} 2. exd5 {[%clk 0:02:59.7]}
2... Qxd5 {[%clk 0:02:58.3]} 3. Nc3 {[%clk 0:02:59.9]} 3... Qd6 {[%clk
0:02:57.7]} 4. d4 {[%clk 0:03:00.4]} 4... Nf6 {[%clk 0:02:56.6]} 5. Bc4 {[%clk
0:02:50.2]} 5... e6 {[%clk 0:02:54]} 6. Nf3 {[%clk 0:02:49.8]} 6... a6 {[%clk
0:02:54]} 7. Qe2 {[%clk 0:02:48]} 7... b5 {[%clk 0:02:52.2]} 8. Bb3 {[%clk
0:02:48.1]} 8... Bb7 {[%clk 0:02:51.3]} 9. Bg5 {[%clk 0:02:46.4]} 9... Nbd7
{[%clk 0:02:51]} 10. O-O-O {[%clk 0:02:46]} 10... b4 {[%clk 0:02:36.5]} 11. d5
{[%clk 0:02:12.7]} 11... e5 {[%clk 0:01:58.4]} 12. Ne4 {[%clk 0:01:54.3]} 12...
Nxe4 {[%clk 0:01:53.7]} 13. Qxe4 {[%clk 0:01:55.2]} 13... f6 {[%clk 0:01:53.8]}
14. Be3 {[%clk 0:01:40.3]} 14... a5 {[%clk 0:01:52]} 15. Ba4 {[%clk 0:01:34.3]}
15... O-O-O {[%clk 0:01:50.3]} 16. Qc4 {[%clk 0:01:25.5]} 16... Nb6 {[%clk
0:01:24.9]} 17. Bxb6 {[%clk 0:01:15.5]} 17... Qxb6 {[%clk 0:01:25.8]} 18. Bc6
{[%clk 0:01:15.2]} 18... Bxc6 {[%clk 0:01:10.8]} 19. dxc6 {[%clk 0:01:16.1]}
19... Bd6 {[%clk 0:01:06.4]} 20. Rd5 {[%clk 0:01:12]} 20... e4 {[%clk
0:00:57.7]} 21. Rb5 {[%clk 0:00:55.9]} 21... Bf4+ {[%clk 0:00:55.6]} 22. Kb1
{[%clk 0:00:55.4]} 22... exf3 {[%clk 0:00:34.6]} 23. Rxb6 {[%clk 0:00:51.3]}
23... cxb6 {[%clk 0:00:33.7]} 24. Qxf4 {[%clk 0:00:31.5]} 24... fxg2 {[%clk
0:00:33]} 25. Qg4+ {[%clk 0:00:30.4]} 25... Kc7 {[%clk 0:00:32.6]} 26. Qxg2
{[%clk 0:00:31.3]} 26... g5 {[%clk 0:00:32.4]} 27. b3 {[%clk 0:00:29.8]} 27...
Rd6 {[%clk 0:00:32.2]} 28. Re1 {[%clk 0:00:29.2]} 28... Rxc6 {[%clk 0:00:28.5]}
29. Re7+ {[%clk 0:00:26.9]} 29... Kd6 {[%clk 0:00:28.6]} 30. Qe4 {[%clk
0:00:23.2]} 1-0

[Event "Early-Titled-Tuesday-Blitz-July-09-2024"]
[Site "Chess.com"]
[Date "2024.07.09"]
[Round "3"]
[White "Dr_Pepper18"]
[Black "johnmez"]
[Result "1-0"]
[WhiteElo "2445"]
[BlackElo "2242"]
[TimeControl "180+1"]
[EndTime "8:28:54 PDT"]
[Termination "Dr_Pepper18 won on time"]

1. d4 {[%clk 0:03:00.9]} 1... Nf6 {[%clk 0:02:55.8]} 2. c4 {[%clk 0:03:00.8]}
2... e6 {[%clk 0:02:55.3]} 3. Nc3 {[%clk 0:03:01.3]} 3... Bb4 {[%clk 0:02:52.2]}
4. a3 {[%clk 0:03:01.6]} 4... Bxc3+ {[%clk 0:02:51.8]} 5. bxc3 {[%clk
0:03:02.5]} 5... Nc6 {[%clk 0:02:49]} 6. f3 {[%clk 0:03:02.5]} 6... O-O {[%clk
0:02:47.2]} 7. e4 {[%clk 0:03:02.5]} 7... b6 {[%clk 0:02:41.7]} 8. Bd3 {[%clk
0:02:58.5]} 8... Na5 {[%clk 0:02:37.6]} 9. Bg5 {[%clk 0:02:55]} 9... h6 {[%clk
0:02:35.9]} 10. Bh4 {[%clk 0:02:55.3]} 10... g5 {[%clk 0:02:27.9]} 11. Bf2
{[%clk 0:02:54.5]} 11... Ba6 {[%clk 0:02:27.7]} 12. Qe2 {[%clk 0:02:53]} 12...
Qe7 {[%clk 0:02:17.1]} 13. h4 {[%clk 0:02:45.4]} 13... Nh7 {[%clk 0:01:24.3]}
14. e5 {[%clk 0:02:27.2]} 14... f5 {[%clk 0:01:23.3]} 15. exf6 {[%clk
0:02:23.6]} 15... Qxf6 {[%clk 0:01:18.3]} 16. hxg5 {[%clk 0:02:00.4]} 16... Nxg5
{[%clk 0:01:11.8]} 17. Nh3 {[%clk 0:02:00.4]} 17... Rf7 {[%clk 0:01:00.5]} 18.
Be3 {[%clk 0:01:57.7]} 18... Rg7 {[%clk 0:00:54.2]} 19. Nf2 {[%clk 0:01:49.8]}
19... d5 {[%clk 0:00:46]} 20. Ng4 {[%clk 0:01:47.3]} 20... Qe7 {[%clk 0:00:40]}
21. cxd5 {[%clk 0:01:05]} 21... Bxd3 {[%clk 0:00:34.4]} 22. Qxd3 {[%clk
0:01:05.9]} 22... exd5 {[%clk 0:00:24.1]} 23. Nxh6+ {[%clk 0:01:05.2]} 23... Kf8
{[%clk 0:00:20.2]} 24. Nf5 {[%clk 0:01:05.7]} 24... Qf6 {[%clk 0:00:09.6]} 25.
Nxg7 {[%clk 0:01:04.8]} 25... Kxg7 {[%clk 0:00:08.8]} 26. Bxg5 {[%clk
0:01:03.9]} 26... Qxg5 {[%clk 0:00:08.2]} 27. Kf2 {[%clk 0:00:52.3]} 27... Rg8
{[%clk 0:00:01.8]} 28. Rae1 {[%clk 0:00:47.4]} 28... Kf8 {[%clk 0:00:01.4]} 29.
g4 {[%clk 0:00:44.9]} 29... Nc4 {[%clk 0:00:01.3]} 30. Rh5 {[%clk 0:00:41.5]}
1-0

[Event "Early-Titled-Tuesday-Blitz-July-09-2024"]
[Site "Chess.com"]
[Date "2024.07.09"]
[Round "3"]
[White "stollenmonster"]
[Black "CristianS27"]
[Result "1/2-1/2"]
[WhiteElo "2882"]
[BlackElo "2523"]
[TimeControl "180+1"]
[EndTime "8:28:57 PDT"]
[Termination "Game drawn by repetition"]

1. e4 {[%clk 0:03:00.9]} 1... e5 {[%clk 0:03:00.1]} 2. Nc3 {[%clk 0:03:00.3]}
2... Nf6 {[%clk 0:03:00.2]} 3. g3 {[%clk 0:03:00.4]} 3... d5 {[%clk 0:03:00.3]}
4. exd5 {[%clk 0:03:01.2]} 4... Nxd5 {[%clk 0:03:00.3]} 5. Bg2 {[%clk
0:03:01.7]} 5... Nxc3 {[%clk 0:03:00.7]} 6. bxc3 {[%clk 0:03:02.2]} 6... Nc6
{[%clk 0:03:01.6]} 7. d3 {[%clk 0:03:02.4]} 7... Bc5 {[%clk 0:03:02.1]} 8. Ne2
{[%clk 0:03:01.6]} 8... O-O {[%clk 0:03:02.6]} 9. O-O {[%clk 0:03:02.3]} 9...
Bb6 {[%clk 0:03:03.2]} 10. h3 {[%clk 0:03:02]} 10... f5 {[%clk 0:02:54.6]} 11.
Kh2 {[%clk 0:02:59.4]} 11... f4 {[%clk 0:02:54.1]} 12. Be4 {[%clk 0:02:46.1]}
12... Bxf2 {[%clk 0:02:12.6]} 13. Rxf2 {[%clk 0:02:05.6]} 13... fxg3+ {[%clk
0:02:12.5]} 14. Kxg3 {[%clk 0:02:06.5]} 14... Rxf2 {[%clk 0:02:12.9]} 15. Kxf2
{[%clk 0:02:07.4]} 15... Qh4+ {[%clk 0:02:13.5]} 16. Kg1 {[%clk 0:02:07.8]}
16... Bxh3 {[%clk 0:02:12.7]} 17. Be3 {[%clk 0:02:07.2]} 17... Rf8 {[%clk
0:02:11.2]} 18. Qe1 {[%clk 0:01:43]} 18... Rf1+ {[%clk 0:01:32.2]} 19. Qxf1
{[%clk 0:01:42.7]} 19... Bxf1 {[%clk 0:01:32.7]} 20. Rxf1 {[%clk 0:01:43.1]}
20... Qg4+ {[%clk 0:01:13.5]} 21. Kf2 {[%clk 0:01:41.4]} 21... Qh4+ {[%clk
0:01:10.9]} 22. Kg2 {[%clk 0:01:38.1]} 22... Ne7 {[%clk 0:01:07.8]} 23. Ng3
{[%clk 0:01:33.4]} 23... c6 {[%clk 0:01:05.1]} 24. Bxa7 {[%clk 0:01:25.2]} 24...
Nd5 {[%clk 0:01:03.2]} 25. Ne2 {[%clk 0:00:48.5]} 25... Qg4+ {[%clk 0:00:58.4]}
26. Kf2 {[%clk 0:00:48.7]} 26... Qh4+ {[%clk 0:00:55.1]} 27. Kg2 {[%clk
0:00:48.9]} 27... Qg4+ {[%clk 0:00:44.4]} 28. Kf2 {[%clk 0:00:48.8]} 28... h5
{[%clk 0:00:33.6]} 29. c4 {[%clk 0:00:35.1]} 29... Qh4+ {[%clk 0:00:32]} 30. Kg2
{[%clk 0:00:33.2]} 30... Qg4+ {[%clk 0:00:32]} 31. Kf2 {[%clk 0:00:33.3]} 31...
Qh4+ {[%clk 0:00:17.3]} 32. Kg2 {[%clk 0:00:33]} 32... Qg4+ {[%clk 0:00:17.8]}
33. Kf2 {[%clk 0:00:33]} 1/2-1/2